bitfinex/quotes_BTCUSD_20250114
["timestamp","ask_amount","ask_price","bid_price","bid_amount"]
[1736847006004,0.207253,96500.0,96499.0,0.13682504]
[1736847006211,0.30897992,96500.0,96499.0,0.13682504]
[1736847006425,0.33987791,96500.0,96499.0,0.13682504]
[1736847006731,0.61091576,96500.0,96499.0,0.13673295]
[1736847007143,0.33001777,96500.0,96499.0,0.13151541]
[1736847007357,0.207264,96496.0,96480.0,0.1237461]
[1736847007553,0.207245,96504.0,96481.0,0.03143637]
[1736847007554,0.207246,96504.0,96481.0,0.03143637]
[1736847007758,0.10422692,96503.0,96481.0,0.02403637]
[1736847007971,0.207246,96504.0,96490.0,0.1237461]
[1736847008182,0.1,96522.0,96484.0,0.1247]
[1736847008408,0.1237461,96510.0,96484.0,0.1247]
[1736847008620,0.207246,96504.0,96485.0,0.0074]
[1736847008822,0.207265,96495.0,96485.0,0.0074]
[1736847009126,0.207274,96491.0,96485.0,0.0074]
[1736847009371,0.207274,96491.0,96486.0,0.0074]
[1736847009574,0.414548,96491.0,96486.0,0.0074]
[1736847009774,0.207286,96485.0,96484.0,0.1247]
[1736847010000,0.31151292,96485.0,96484.0,1.5]
[1736847011384,0.31151292,96485.0,96484.0,1.501]
[1736847011788,0.20727,96493.0,96484.0,1.501]
[1736847011994,0.30310585,96493.0,96484.0,0.001]
[1736847012195,0.51037585,96493.0,96485.0,0.0074]
[1736847012418,0.51037585,96493.0,96492.0,1.5]
[1736847013130,0.51137585,96493.0,96492.0,1.5]
[1736847013854,0.51037585,96493.0,96492.0,1.5]
[1736847014066,0.51137585,96493.0,96492.0,1.5]
[1736847014466,0.51037585,96493.0,96492.0,1.5]
[1736847016242,0.51037585,96493.0,96474.0,0.00049294]
[1736847016243,0.207307,96475.0,96474.0,0.00049294]
[1736847016652,0.207307,96475.0,96474.0,0.00789294]
[1736847017299,0.31153392,96475.0,96474.0,1.50049294]
[1736847017457,0.31153392,96475.0,96474.0,1.51089294]
[1736847017847,0.31153392,96475.0,96474.0,1.50947157]
[1736847018151,0.207288,96484.0,96474.0,1.50207157]
[1736847018394,0.10422692,96483.0,96474.0,1.50947157]
[1736847018583,0.207302,96478.0,96474.0,1.50947157]
[1736847018830,0.207302,96478.0,96475.0,0.0074]
[1736847019038,0.207305,96476.0,96474.0,0.00179256]
[1736847019372,0.10422692,96475.0,96474.0,0.00179256]
[1736847019526,0.207305,96476.0,96474.0,0.00279256]
[1736847020074,0.207305,96476.0,96474.0,0.00179256]
[1736847020435,0.207305,96476.0,96474.0,0.00379256]
[1736847020655,0.207241,96506.0,96475.0,0.023]
[1736847020852,0.10422692,96505.0,96475.0,0.023]
[1736847021058,0.207282,96487.0,96475.0,0.023]
[1736847021794,0.02102742,96501.0,96486.0,1.5]
[1736847021795,0.20726,96497.0,96486.0,1.5]
[1736847022020,0.207277,96489.0,96486.0,1.5]
[1736847022395,0.51878092,96489.0,96486.0,1.5]
[1736847022571,0.207281,96487.0,96484.0,0.00728]
[1736847022777,0.10422692,96486.0,96474.0,0.00179256]
[1736847022972,0.207305,96476.0,96475.0,0.00728]
[1736847023172,0.207305,96476.0,96475.0,1.50728]
[1736847024205,0.207305,96476.0,96475.0,1.50928]
[1736847024794,0.207305,96476.0,96475.0,1.502]
[1736847025958,0.31153192,96476.0,96475.0,1.502]
[1736847026335,0.31153192,96476.0,96475.0,0.002]
[1736847027103,0.20729,96483.0,96475.0,0.002]
[1736847027309,0.207289,96484.0,96474.0,0.00179256]
[1736847027710,0.207289,96484.0,96475.0,0.002]
[1736847027877,0.414578,96484.0,96476.0,0.00728]
[1736847028077,0.207296,96480.0,96476.0,0.00728]
[1736847028481,0.414592,96480.0,96476.0,0.00728]
[1736847028884,0.414592,96480.0,96477.0,1.5]
[1736847029083,0.10422692,96479.0,96477.0,1.5]
[1736847029296,0.207301,96478.0,96477.0,1.5]
[1736847030068,0.207301,96478.0,96477.0,1.502]
[1736847030458,0.2077821,96484.0,96478.0,0.023]
[1736847030459,0.0004931,96484.0,96478.0,0.023]
[1736847031073,0.0004931,96484.0,96480.0,0.023]
[1736847031272,0.0004931,96484.0,96481.0,0.0816]
[1736847031495,0.0004931,96484.0,96482.0,0.06943636]
[1736847031692,0.0004931,96484.0,96483.0,0.00103623]
[1736847031924,0.0004931,96484.0,96483.0,1.52403626]
[1736847032131,0.0004931,96484.0,96483.0,1.523]
[1736847033113,0.0004931,96484.0,96483.0,1.524]
[1736847033691,0.0004931,96484.0,96483.0,1.523]
[1736847034098,0.0004931,96484.0,96483.0,1.524]
[1736847035257,0.0004931,96484.0,96483.0,1.62822692]
[1736847035471,0.0004931,96484.0,96483.0,1.72722692]
[1736847035692,0.0004931,96484.0,96483.0,1.91282692]
[1736847036100,0.207211,96520.0,96501.0,0.0454]
[1736847036302,0.0204121,96531.0,96502.0,0.02403606]
[1736847036522,0.10526341,96530.0,96504.0,0.023]
[1736847036727,0.207208,96522.0,96505.0,0.00103601]
[1736847036881,0.207208,96522.0,96506.0,0.023]
[1736847037314,0.207208,96522.0,96504.0,0.023]
[1736847037733,0.207208,96522.0,96508.0,0.023]
[1736847037936,0.207191,96529.0,96508.0,0.023]
[1736847038133,0.31141792,96529.0,96509.0,0.00728]
[1736847038414,0.207201,96525.0,96510.0,0.023]
[1736847039095,0.207201,96525.0,96508.0,0.01904952]
[1736847039096,0.207202,96524.0,96508.0,0.01904952]
[1736847039246,0.13650995,96524.0,96508.0,0.01904952]
[1736847039460,0.10526341,96524.0,96509.0,0.00728]
[1736847039659,0.207229,96512.0,96508.0,0.01904952]
[1736847039905,0.207229,96512.0,96507.0,0.00728]
[1736847040106,0.207229,96512.0,96501.0,0.04545558]
[1736847040107,0.207242,96506.0,96502.0,0.00728]
[1736847040938,0.207237,96508.0,96502.0,0.00728]
[1736847041091,0.207229,96512.0,96502.0,0.00728]
[1736847041520,0.207219,96516.0,96503.0,1.5]
[1736847041728,0.207229,96512.0,96503.0,1.5]
[1736847041893,0.02055546,96522.0,96503.0,1.5]
[1736847042097,0.02055546,96522.0,96504.0,0.03028]
[1736847042098,0.10422692,96522.0,96504.0,0.03028]
[1736847042302,0.207206,96523.0,96506.0,0.023]
[1736847042503,0.1,96555.0,96511.0,0.023]
[1736847042702,0.207174,96538.0,96518.0,1.5]
[1736847042973,0.207175,96537.0,96518.0,1.5]
[1736847043174,0.001,96522.0,96519.0,0.023]
[1736847043575,0.207184,96533.0,96519.0,0.023]
[1736847044074,0.0008543,96524.0,96519.0,0.023]
[1736847045081,0.0008543,96524.0,96518.0,1.5]
[1736847045082,0.41441,96523.0,96518.0,1.5]
[1736847046267,0.207204,96523.0,96518.0,1.5]
[1736847046476,0.208204,96523.0,96518.0,1.5]
[1736847046607,0.415408,96523.0,96518.0,1.5]
[1736847046796,0.414408,96523.0,96518.0,1.5]
[1736847047238,0.207222,96515.0,96501.0,0.04545558]
[1736847047439,0.207214,96519.0,96506.0,0.023]
[1736847047641,0.0008543,96524.0,96506.0,0.023]
[1736847047642,0.2080573,96524.0,96508.0,0.023]
[1736847047815,0.207213,96519.0,96508.0,0.023]
[1736847048018,0.207213,96519.0,96510.0,0.023]
[1736847048220,0.2080573,96524.0,96510.0,0.023]
[1736847048627,0.207213,96519.0,96510.0,0.023]
[1736847048899,0.207213,96519.0,96511.0,0.00728]
[1736847049099,0.207215,96518.0,96511.0,0.00728]
[1736847049307,0.208206,96523.0,96512.0,1.5]
[1736847049481,0.207215,96518.0,96512.0,1.5]
[1736847050447,0.207206,96523.0,96512.0,1.5]
[1736847050448,0.207217,96517.0,96512.0,1.5]
[1736847050646,0.207217,96517.0,96512.0,1.50736]
[1736847051291,0.207217,96517.0,96512.0,1.5]
[1736847051491,0.414435,96517.0,96512.0,1.5]
[1736847051690,0.414435,96517.0,96512.0,1.501]
[1736847052098,0.414435,96517.0,96512.0,1.5]
[1736847053223,0.207226,96513.0,96511.0,0.00736]
[1736847053636,0.0008543,96524.0,96501.0,5.558e-05]
[1736847053637,0.207249,96502.0,96501.0,5.558e-05]
[1736847053834,0.50787592,96502.0,96501.0,5.8e-07]
[1736847054037,0.60787592,96502.0,96501.0,5.8e-07]
[1736847054602,0.62820679,96502.0,96501.0,5.8e-07]
[1736847054807,0.73243371,96502.0,96501.0,5.8e-07]
[1736847055186,0.74355747,96502.0,96501.0,5.8e-07]
[1736847055844,0.64355747,96502.0,96501.0,5.8e-07]
[1736847056027,0.64855747,96502.0,96501.0,0.00100058]
[1736847056424,0.54433055,96502.0,96501.0,0.00100058]
[1736847057126,0.49878485,96502.0,96501.0,0.00100058]
[1736847057708,0.48766109,96502.0,96501.0,0.00019871]
[1736847058492,0.48766109,96502.0,96481.0,1.5]
[1736847058493,0.207292,96482.0,96481.0,1.5]
[1736847058663,0.31151892,96482.0,96481.0,1.50007099]
[1736847060536,0.31151892,96482.0,96481.0,7.099e-05]
[1736847060712,0.38412771,96482.0,96481.0,7.099e-05]
[1736847060913,0.31151892,96482.0,96481.0,7.099e-05]
[1736847061114,0.46151892,96482.0,96481.0,7.099e-05]
[1736847061412,0.46251892,96482.0,96481.0,1e-08]
[1736847061613,0.48290729,96482.0,96481.0,1e-08]
[1736847061844,0.58713421,96482.0,96481.0,1e-08]
[1736847062201,0.68613421,96482.0,96481.0,1e-08]
[1736847062402,0.48690729,96482.0,96481.0,1e-08]
[1736847063229,0.33690729,96482.0,96481.0,1e-08]
[1736847064781,0.33190729,96482.0,96481.0,1e-08]
[1736847065196,0.58590729,96482.0,96481.0,1e-08]
[1736847065623,0.58190729,96482.0,96481.0,1e-08]
[1736847065777,0.68613421,96482.0,96481.0,1e-08]
[1736847065979,0.69013421,96482.0,96481.0,1e-08]
[1736847066500,0.68613421,96482.0,96481.0,1e-08]
[1736847066680,0.69013421,96482.0,96481.0,1e-08]
[1736847067559,0.54013421,96482.0,96481.0,1e-08]
[1736847068291,0.69013421,96482.0,96481.0,1e-08]
[1736847069619,0.207307,96475.0,96474.0,0.00156883]
[1736847069837,0.63614413,96475.0,96474.0,0.00206193]
[1736847070044,0.63510764,96475.0,96474.0,0.00206193]
[1736847070307,0.55700764,96475.0,96474.0,0.00206193]
[1736847070645,0.46153392,96475.0,96474.0,0.00206193]
[1736847070849,0.46453392,96475.0,96474.0,0.00206193]
[1736847071076,0.4756597,96475.0,96474.0,0.00206193]
[1736847072041,0.4726597,96475.0,96474.0,0.00206193]
[1736847072305,0.4756597,96475.0,96474.0,0.00206193]
[1736847072479,0.57988662,96475.0,96474.0,0.00206193]
[1736847074572,0.67988662,96475.0,96474.0,9.3e-07]
[1736847075364,0.67688662,96475.0,96474.0,9.3e-07]
[1736847075706,0.77988662,96475.0,96474.0,9.3e-07]
[1736847076675,0.77688662,96475.0,96474.0,9.3e-07]
[1736847077232,0.78288662,96475.0,96474.0,9.3e-07]
[1736847078496,0.68288662,96475.0,96474.0,9.3e-07]
[1736847078697,0.78288662,96475.0,96474.0,9.3e-07]
[1736847081376,0.40264551,96463.0,96447.0,0.00179046]
[1736847081592,0.59860208,96463.0,96462.0,0.00187477]
[1736847082477,0.79860208,96463.0,96462.0,7.7e-07]
[1736847082688,0.70260208,96463.0,96462.0,7.7e-07]
[1736847083551,0.80260208,96463.0,96462.0,7.7e-07]
[1736847083734,0.70260208,96463.0,96462.0,7.7e-07]
[1736847084017,0.38138924,96463.0,96462.0,7.7e-07]
[1736847084230,0.004,96463.0,96462.0,0.04800077]
[1736847084590,0.004,96463.0,96462.0,1.54800077]
[1736847084767,0.00103649,96466.0,96462.0,1.54800077]
[1736847084970,0.414658,96465.0,96462.0,1.54800077]
[1736847085166,0.208333,96463.0,96462.0,1.54800077]
[1736847085995,0.208333,96463.0,96462.0,0.04800077]
[1736847086147,0.31155992,96463.0,96462.0,0.04800077]
[1736847086993,0.38418141,96463.0,96462.0,0.04800077]
[1736847087328,0.31155992,96463.0,96462.0,7.7e-07]
[1736847088050,0.02327369,96516.0,96464.0,0.023]
[1736847088051,0.207261,96497.0,96464.0,0.023]
[1736847088270,0.207295,96481.0,96472.0,0.023]
[1736847088452,0.207294,96481.0,96475.0,0.075]
[1736847088756,0.207294,96481.0,96476.0,0.023]
[1736847088955,0.207289,96484.0,96476.0,0.023]
[1736847089160,0.207265,96495.0,96477.0,0.075]
[1736847089359,0.04529453,96499.0,96481.0,0.075]
[1736847089525,0.04529453,96499.0,96485.0,0.023]
[1736847089734,0.04529453,96499.0,96493.0,0.075]
[1736847089988,0.04529453,96499.0,96496.0,0.023]
[1736847090188,0.04529453,96499.0,96489.0,0.12384197]
[1736847090189,0.04529453,96499.0,96498.0,0.0995]
[1736847090602,0.0008541,96515.0,96500.0,0.173]
[1736847090804,0.0008541,96515.0,96512.0,0.1241]
[1736847091038,0.02058443,96544.0,96514.0,0.0765]
[1736847091238,0.31127986,96553.0,96514.0,0.0765]
[1736847091239,0.0008536,96532.0,96523.0,1.5]
[1736847091380,0.0008536,96532.0,96523.0,1.5765]
[1736847091582,0.0008536,96532.0,96523.0,1.5995]
[1736847092717,0.01150074,96524.0,96523.0,1.6005]
[1736847093264,0.01150074,96524.0,96523.0,1.5995]
[1736847093663,0.01150074,96524.0,96523.0,1.6005]
[1736847095141,0.01150074,96524.0,96523.0,0.1005]
[1736847095254,0.01150074,96524.0,96523.0,0.0955]
[1736847095698,0.01150074,96524.0,96523.0,0.0945]
[1736847095938,0.0008543,96524.0,96523.0,0.0945]
[1736847096194,0.0008543,96524.0,96523.0,0.0955]
[1736847096409,0.0008543,96524.0,96523.0,0.10278]
[1736847096851,0.0008543,96524.0,96523.0,0.10178]
[1736847097086,0.0008543,96524.0,96523.0,0.10381578]
[1736847097587,0.0008543,96524.0,96523.0,0.10278]
[1736847099063,0.0008543,96524.0,96523.0,0.10178]
[1736847099266,0.0008543,96524.0,96523.0,0.10278]
[1736847099472,0.0008543,96524.0,96523.0,0.0725]
[1736847099695,0.04237863,96524.0,96523.0,0.001]
[1736847099949,0.04237863,96524.0,96514.0,9.196e-05]
[1736847099950,0.10508122,96524.0,96514.0,0.00737196]
[1736847100130,0.207221,96515.0,96514.0,9.196e-05]
[1736847101312,0.31144792,96515.0,96514.0,9.196e-05]
[1736847101553,0.46144792,96515.0,96514.0,9.196e-05]
[1736847101791,0.31144792,96515.0,96514.0,9.196e-05]
[1736847102032,0.207221,96515.0,96514.0,9.196e-05]
[1736847103036,0.208221,96515.0,96514.0,9.196e-05]
[1736847103477,0.207221,96515.0,96514.0,9.196e-05]
[1736847103703,0.31144792,96515.0,96514.0,9.196e-05]
[1736847103852,0.31144792,96515.0,96514.0,0.00109196]
[1736847104281,0.31144792,96515.0,96514.0,0.07799196]
[1736847104282,0.207221,96515.0,96514.0,0.07799196]
[1736847104465,0.207208,96521.0,96515.0,0.023]
[1736847104665,0.207194,96528.0,96515.0,0.023]
[1736847104889,0.207195,96528.0,96515.0,0.023]
[1736847105109,0.207184,96533.0,96515.0,0.023]
[1736847105319,0.207184,96533.0,96523.0,1.523]
[1736847105726,0.207193,96529.0,96523.0,1.523]
[1736847106081,0.0008536,96535.0,96523.0,1.523]
[1736847106285,0.207199,96526.0,96523.0,1.523]
[1736847106485,0.207199,96526.0,96523.0,1.53028]
[1736847106809,0.207199,96526.0,96523.0,0.00728]
[1736847107009,0.207199,96526.0,96523.0,0.00828]
[1736847108377,0.207199,96526.0,96523.0,0.00728]
[1736847108734,0.207199,96526.0,96523.0,0.00928]
[1736847109140,0.00103649,96525.0,96514.0,0.07878494]
[1736847109349,0.207217,96517.0,96516.0,1.5]
[1736847110441,0.207204,96523.0,96516.0,1.5]
[1736847110845,0.207214,96519.0,96516.0,1.5]
[1736847112153,0.207214,96519.0,96516.0,1.502]
[1736847112154,0.414428,96519.0,96516.0,1.502]
[1736847112763,0.414428,96519.0,96516.0,1.5]
[1736847112959,0.414428,96519.0,96516.0,0.002]
[1736847112960,0.00103649,96518.0,96516.0,0.002]
[1736847113185,0.207217,96517.0,96516.0,0.002]
[1736847113382,0.31144392,96517.0,96516.0,0.002]
[1736847114985,0.51866092,96517.0,96514.0,0.00188494]
[1736847115192,0.207221,96515.0,96514.0,0.00188494]
[1736847115393,0.31144792,96515.0,96514.0,0.00188494]
[1736847117905,0.31344792,96515.0,96514.0,0.00188494]
[1736847118146,0.31344792,96515.0,96514.0,0.00088494]
[1736847118521,0.31144792,96515.0,96514.0,0.00088494]
[1736847118979,0.31244792,96515.0,96514.0,0.00088494]
[1736847119410,0.31144792,96515.0,96514.0,0.00088494]
[1736847119808,0.31244792,96515.0,96514.0,0.00088494]
[1736847121098,0.31144792,96515.0,96514.0,0.00088494]
[1736847121273,0.31144792,96515.0,96514.0,0.00188494]
[1736847121928,0.31144792,96515.0,96514.0,0.00088494]
[1736847122082,0.31244792,96515.0,96514.0,0.00088494]
[1736847122756,0.0008543,96524.0,96514.0,0.07778494]
[1736847123089,0.0008543,96524.0,96515.0,0.02403601]
[1736847123404,0.2080573,96524.0,96516.0,1.5]
[1736847123651,0.0008543,96524.0,96516.0,1.5]
[1736847123880,0.0008543,96524.0,96517.0,0.023]
[1736847124498,0.0008543,96524.0,96518.0,0.00103598]
[1736847125077,0.0008543,96524.0,96517.0,0.023]
[1736847125307,0.2080563,96524.0,96517.0,0.023]
[1736847125982,0.0008543,96524.0,96517.0,0.025]
[1736847126167,0.0008543,96524.0,96518.0,0.00103591]
[1736847126654,0.0008543,96524.0,96517.0,0.025]
[1736847127288,0.0008543,96524.0,96519.0,0.023]
[1736847127894,0.0008543,96524.0,96518.0,0.002]
[1736847128306,0.207204,96523.0,96516.0,0.023]
[1736847128458,0.207204,96523.0,96519.0,0.002]
[1736847129037,0.207189,96530.0,96515.0,0.023]
[1736847129210,0.207187,96531.0,96515.0,0.023]
[1736847129211,0.207187,96531.0,96517.0,0.023]
[1736847129349,0.00103649,96530.0,96518.0,0.002]
[1736847129754,0.207213,96519.0,96518.0,0.002]
[1736847130685,0.207213,96519.0,96514.0,0.00088494]
[1736847130686,0.207221,96515.0,96514.0,0.00088494]
[1736847130889,0.46248441,96515.0,96514.0,0.00088494]
[1736847131062,0.46144792,96515.0,96514.0,0.00088494]
[1736847131476,0.1,96510.0,96481.0,0.09135497]
[1736847131680,0.207292,96482.0,96481.0,0.09135497]
[1736847131890,0.31151892,96482.0,96481.0,0.09135497]
[1736847132092,0.46151892,96482.0,96481.0,0.09135497]
[1736847132292,0.15,96481.0,96477.0,0.13703246]
[1736847132507,0.207307,96475.0,96474.0,0.00179382]
[1736847132663,0.31153392,96475.0,96474.0,0.00179382]
[1736847132883,0.20735627,96475.0,96474.0,0.00179382]
[1736847133545,0.20735627,96475.0,96474.0,0.00911382]
[1736847133914,0.31158319,96475.0,96474.0,0.00179382]
[1736847134584,0.31158319,96475.0,96474.0,0.00279382]
[1736847134741,0.31158319,96475.0,96474.0,0.00179382]
[1736847134943,0.31158319,96475.0,96474.0,0.00079382]
[1736847137984,0.29988319,96475.0,96474.0,0.00079382]
[1736847138717,0.37133061,96475.0,96474.0,0.00079382]
[1736847138917,0.44988319,96475.0,96474.0,0.00079382]
[1736847139985,0.4715293,96475.0,96474.0,0.00079382]
[1736847140579,0.5715293,96475.0,96474.0,0.00079382]
[1736847140776,0.5725293,96475.0,96474.0,0.00079382]
[1736847140977,0.67675622,96475.0,96474.0,0.00079382]
[1736847141641,0.67575622,96475.0,96474.0,0.00079382]
[1736847141808,0.67875622,96475.0,96474.0,0.00079382]
[1736847142010,0.1,96472.0,96445.0,1.5]
[1736847142209,0.207363,96449.0,96445.0,1.5]
[1736847142462,0.31158992,96449.0,96445.0,1.5]
[1736847145366,0.31158992,96449.0,96448.0,0.00279046]
[1736847146565,0.207341,96460.0,96448.0,0.00279046]
[1736847146765,0.289378,96489.0,96448.0,0.00279046]
[1736847146766,0.289378,96489.0,96449.0,0.02403672]
[1736847147040,0.207351,96455.0,96448.0,0.00279046]
[1736847147243,0.207352,96454.0,96450.0,1.5]
[1736847147467,0.207344,96458.0,96450.0,1.5]
[1736847147748,0.207353,96454.0,96450.0,1.5]
[1736847147918,0.207334,96463.0,96450.0,1.5]
[1736847148302,0.207334,96463.0,96452.0,0.023]
[1736847148667,0.207326,96467.0,96452.0,0.023]
[1736847149013,0.207333,96464.0,96452.0,0.023]
[1736847149414,0.10422692,96466.0,96452.0,0.023]
[1736847149683,0.207329,96465.0,96452.0,0.023]
[1736847149928,0.207316,96471.0,96454.0,0.023]
[1736847150123,0.51885892,96471.0,96454.0,0.023]
[1736847150574,0.207324,96468.0,96454.0,0.023]
[1736847151240,0.207324,96468.0,96454.0,0.024]
[1736847151654,0.10422692,96467.0,96455.0,1.5]
[1736847151911,0.207353,96454.0,96451.0,0.082]
[1736847152110,0.207363,96449.0,96448.0,0.00179046]
[1736847152335,0.46158992,96449.0,96448.0,0.00179046]
[1736847153014,0.47241732,96449.0,96448.0,0.00179046]
[1736847153609,0.54039435,96449.0,96448.0,0.00179046]
[1736847153811,0.47241732,96449.0,96448.0,0.00179046]
[1736847154304,0.47241732,96449.0,96448.0,0.00279046]
[1736847154961,0.47241732,96449.0,96447.0,0.00179046]
[1736847154962,0.15,96448.0,96447.0,0.00179046]
[1736847155162,0.25526341,96448.0,96447.0,0.00179046]
[1736847155417,0.25422692,96448.0,96447.0,0.00179046]
[1736847155630,0.35845384,96448.0,96447.0,0.00179046]
[1736847155835,0.59075384,96448.0,96447.0,0.00179046]
[1736847156211,0.59075384,96448.0,96447.0,4.6e-07]
[1736847156627,0.59075384,96448.0,96431.0,0.0017934]
[1736847156628,0.3574,96432.0,96431.0,0.0017934]
[1736847156837,0.46162692,96432.0,96431.0,0.0017934]
[1736847157046,0.46162692,96432.0,96410.0,0.076]
[1736847157047,0.207425,96420.0,96410.0,0.076]
[1736847157194,0.31165192,96420.0,96410.0,0.076]
[1736847157578,0.31165192,96420.0,96404.0,0.0072]
[1736847157965,0.31165192,96420.0,96419.0,0.00228495]
[1736847158640,0.29165192,96420.0,96419.0,0.00228495]
[1736847158970,0.30237707,96420.0,96419.0,0.00228495]
[1736847159255,0.50544036,96420.0,96419.0,0.00228495]
[1736847159669,0.45237707,96420.0,96419.0,0.00228495]
[1736847159986,0.45210223,96420.0,96419.0,0.00228495]
[1736847160814,0.45410223,96420.0,96419.0,0.00228495]
[1736847161022,0.44337708,96420.0,96419.0,0.00228495]
[1736847161226,0.29137708,96420.0,96419.0,0.00228495]
[1736847161433,0.207404,96430.0,96419.0,0.00228495]
[1736847161635,0.004,96420.0,96419.0,0.00228495]
[1736847161844,0.004,96420.0,96419.0,0.02528495]
[1736847162067,0.20844449,96428.0,96420.0,0.023]
[1736847162508,0.00103649,96428.0,96420.0,0.023]
[1736847162767,0.01075487,96445.0,96421.0,0.00103707]
[1736847163001,0.10422692,96444.0,96423.0,0.023]
[1736847163116,0.10422692,96444.0,96424.0,0.00103695]
[1736847163323,0.15,96443.0,96424.0,0.00103695]
[1736847163521,0.10422692,96442.0,96425.0,0.023]
[1736847163721,0.21787631,96461.0,96433.0,0.076]
[1736847163722,0.01053831,96461.0,96433.0,0.076]
[1736847163948,0.207325,96467.0,96441.0,0.023]
[1736847164195,0.207325,96467.0,96440.0,0.12384197]
[1736847164196,0.10422692,96466.0,96445.0,0.023]
[1736847164442,0.207339,96461.0,96445.0,0.023]
[1736847164684,0.00103649,96465.0,96446.0,0.0010367]
[1736847164685,0.207329,96465.0,96446.0,0.0010367]
[1736847165140,0.0008536,96474.0,96446.0,0.0010367]
[1736847165359,0.003,96461.0,96451.0,0.023]
[1736847165583,0.003,96461.0,96452.0,0.00103659]
[1736847165795,0.003,96461.0,96453.0,0.00103657]
[1736847166010,0.003,96461.0,96455.0,0.022]
[1736847166218,0.003,96461.0,96456.0,0.00103657]
[1736847166642,0.003,96461.0,96456.0,0.00049323]
[1736847166948,0.207316,96471.0,96457.0,0.0072]
[1736847167740,0.0008536,96474.0,96457.0,0.0072]
[1736847167940,0.0008536,96474.0,96458.0,0.00103655]
[1736847168165,0.207311,96473.0,96458.0,0.023]
[1736847169083,0.207311,96473.0,96459.0,1.5]
[1736847169280,0.207322,96469.0,96457.0,0.0082]
[1736847169890,0.207322,96469.0,96456.0,0.00049323]
[1736847169891,0.207322,96469.0,96458.0,0.023]
[1736847170238,0.207342,96459.0,96458.0,0.001]
[1736847170623,0.10422692,96468.0,96458.0,0.001]
[1736847170847,0.0008536,96474.0,96459.0,0.02403665]
[1736847171045,0.0008536,96474.0,96465.0,0.1245]
[1736847171255,0.0008536,96474.0,96472.0,0.207312]
[1736847171457,0.0008536,96474.0,96473.0,0.20322692]
[1736847171666,0.0828,96536.0,96491.0,0.023]
[1736847171667,0.02125834,96521.0,96491.0,0.023]
[1736847171868,0.207217,96517.0,96493.0,0.023]
[1736847172076,0.10526341,96516.0,96493.0,0.023]
[1736847172391,0.207221,96515.0,96493.0,0.023]
[1736847172546,0.00103649,96514.0,96493.0,0.023]
[1736847172755,0.207225,96513.0,96493.0,0.023]
[1736847172953,0.10526341,96512.0,96494.0,0.00712]
[1736847173193,0.10422692,96512.0,96494.0,0.00712]
[1736847173319,0.0008536,96532.0,96495.0,0.02403617]
[1736847173516,0.207192,96529.0,96497.0,0.1475]
[1736847173717,0.10422692,96528.0,96498.0,0.00103605]
[1736847174020,0.00103649,96527.0,96497.0,0.1475]
[1736847174187,0.10422692,96526.0,96497.0,0.1475]
[1736847174393,0.00103649,96525.0,96497.0,0.1475]
[1736847174645,0.10526341,96525.0,96497.0,0.1475]
[1736847174832,0.207188,96531.0,96500.0,0.18581565]
[1736847175038,0.10422692,96530.0,96503.0,0.023]
[1736847175274,0.001,96528.0,96504.0,0.00103599]
[1736847175944,0.0008538,96516.0,96504.0,0.00103599]
[1736847176149,0.0008538,96516.0,96503.0,0.023]
[1736847176429,0.0008538,96516.0,96507.0,0.023]
[1736847177069,0.0008538,96516.0,96503.0,0.023]
[1736847177284,0.0008538,96516.0,96509.0,0.023]
[1736847177452,0.0008538,96516.0,96510.0,0.00103594]
[1736847177653,0.0008538,96516.0,96511.0,0.00103594]
[1736847178173,0.0008538,96516.0,96511.0,0.02403594]
[1736847178521,0.0008538,96516.0,96513.0,0.023]
[1736847180464,0.0008538,96516.0,96513.0,0.025]
[1736847180665,0.03749794,96546.0,96513.0,0.025]
[1736847180867,0.207205,96523.0,96514.0,0.00712]
[1736847181060,0.15,96540.0,96512.0,0.0796]
[1736847181061,0.207225,96514.0,96512.0,0.0796]
[1736847181269,0.001,96516.0,96513.0,0.002]
[1736847182752,0.207183,96533.0,96513.0,0.023]
[1736847182953,0.207187,96531.0,96513.0,0.023]
[1736847183159,0.207191,96529.0,96514.0,0.002]
[1736847183361,0.207202,96525.0,96514.0,0.002]
[1736847183583,0.207202,96525.0,96512.0,0.08672]
[1736847183584,0.10422692,96524.0,96512.0,0.08672]
[1736847183787,0.207214,96519.0,96512.0,0.08672]
[1736847183987,0.10422692,96518.0,96512.0,0.00712]
[1736847184490,0.207217,96517.0,96512.0,0.00712]
[1736847184707,0.207217,96517.0,96513.0,0.00712]
[1736847184906,0.31144392,96517.0,96503.0,0.077]
[1736847185115,0.10422692,96516.0,96470.0,0.18581565]
[1736847185326,0.207235,96509.0,96503.0,0.00712]
[1736847185533,0.207238,96507.0,96503.0,0.00712]
[1736847185738,0.207243,96505.0,96503.0,0.00712]
[1736847185943,0.10422692,96504.0,96503.0,0.00712]
[1736847186157,0.207256,96499.0,96490.0,0.077]
[1736847186373,0.10422692,96498.0,96490.0,0.077]
[1736847186586,0.10422692,96499.0,96490.0,0.077]
[1736847186798,0.10422692,96499.0,96490.0,0.08412]
[1736847187249,0.10422692,96499.0,96492.0,0.00712]
[1736847187455,0.10422692,96499.0,96493.0,1.50049323]
[1736847188094,0.10522692,96499.0,96493.0,1.50049323]
[1736847188735,0.10422692,96498.0,96493.0,1.50049323]
[1736847188911,0.31148492,96498.0,96493.0,1.50049323]
[1736847189121,0.51874292,96498.0,96493.0,1.50049323]
[1736847189335,0.31148492,96498.0,96493.0,1.50049323]
[1736847189535,0.10422692,96498.0,96493.0,1.50049323]
[1736847190082,0.10422692,96498.0,96493.0,1.50249323]
[1736847190513,0.10422692,96498.0,96493.0,1.50049323]
[1736847191783,0.10422692,96498.0,96493.0,1.50249323]
[1736847192725,0.1464,96540.0,96494.0,0.023]
[1736847192932,0.02090201,96519.0,96496.0,0.123]
[1736847193154,0.207219,96517.0,96496.0,0.123]
[1736847193356,0.207221,96515.0,96502.0,1.5]
[1736847193533,0.10422692,96514.0,96502.0,1.5]